bitfinex/quotes_ETHUSD_20250222
["timestamp","ask_amount","ask_price","bid_price","bid_amount"]
[1740236235721,10.368913,2741.7,2741.1,3.64806]
[1740236236227,0.7889,2741.6,2741.2,0.12934638]
[1740236238597,0.7889,2741.6,2741.3,3.64782]
[1740236238938,0.7889,2741.6,2741.4,0.12923495]
[1740236240947,6.1089,2741.6,2741.4,0.12923495]
[1740236242249,6.1089,2741.6,2741.1,3.64814]
[1740236242541,6.1089,2741.6,2741.5,0.12917924]
[1740236242747,6.1089,2741.6,2741.1,3.64814]
[1740236243224,6.1089,2741.6,2741.2,0.12934638]
[1740236244516,6.1089,2741.6,2741.2,3.77736638]
[1740236245430,6.1089,2741.6,2741.2,0.12934638]
[1740236245835,6.1089,2741.6,2740.9,4.54235]
[1740236245836,6.1089,2741.6,2741.3,0.12927224]
[1740236246041,6.1089,2741.6,2741.1,3.64816]
[1740236246217,6.1089,2741.6,2741.2,0.12932796]
[1740236246617,9.75648,2741.6,2741.2,0.12932796]
[1740236246853,9.75648,2741.6,2741.0,3.64829]
[1740236247150,9.75648,2741.6,2741.3,0.12927224]
[1740236247336,9.75648,2741.6,2741.0,4.49466305]
[1740236247538,9.75648,2741.6,2741.4,0.12616633]
[1740236247739,9.75648,2741.6,2741.0,3.64829]
[1740236247937,9.75648,2741.6,2741.5,0.12611062]
[1740236248128,11.096874,2741.6,2741.5,0.12611062]
[1740236248630,11.096874,2741.6,2741.0,3.64817]
[1740236248829,9.75648,2741.6,2741.1,0.12633349]
[1740236249638,3.6478,2741.4,2741.1,0.12633349]
[1740236249842,3.64776,2741.5,2740.9,7.9277]
[1740236250042,5.32,2741.5,2741.0,0.12638922]
[1740236250639,5.32,2741.5,2741.2,3.64794]
[1740236250823,5.32,2741.5,2741.3,0.12620363]
[1740236251863,5.32,2741.5,2741.4,0.12614791]
[1740236252316,5.32,2741.5,2741.2,7.29589]
[1740236252521,5.32,2741.5,2741.4,0.12614791]
[1740236252757,5.32,2741.5,2741.3,0.12620363]
[1740236253059,5.32,2741.5,2741.4,0.12614791]
[1740236253462,5.32,2741.5,2741.2,3.64794]
[1740236253642,5.32,2741.5,2741.4,0.12614791]
[1740236253958,5.32,2741.5,2741.2,7.2959]
[1740236254136,5.32,2741.5,2741.4,0.12614791]
[1740236254326,5.32,2741.5,2741.3,0.12620363]
[1740236254526,5.32,2741.5,2741.4,0.12614791]
[1740236254962,5.32,2741.5,2741.2,3.64794]
[1740236255120,5.32,2741.5,2741.4,0.12614791]
[1740236255319,5.32,2741.5,2741.3,0.12617599]
[1740236255559,5.32,2741.5,2741.4,0.12612028]
[1740236255738,6.1089,2741.6,2741.4,0.12612028]
[1740236255924,6.1089,2741.6,2741.2,3.64794]
[1740236256125,6.1089,2741.6,2741.5,0.12606457]
[1740236256355,6.1089,2741.6,2741.2,3.64794]
[1740236256559,6.1089,2741.6,2741.5,0.12606457]
[1740236256763,6.1089,2741.6,2741.2,3.64794]
[1740236257225,6.1089,2741.6,2741.3,0.12616678]
[1740236257428,6.1089,2741.6,2741.1,3.64806]
[1740236257706,6.1089,2741.6,2741.2,0.1262225]
[1740236258041,6.1089,2741.6,2741.0,8.95959456]
[1740236258243,6.1089,2741.6,2741.1,0.12627823]
[1740236259429,9.75641,2741.6,2741.1,0.12627823]
[1740236259631,6.1089,2741.6,2741.1,3.77435823]
[1740236262348,9.75643,2741.6,2741.1,3.77435823]
[1740236263770,6.1089,2741.6,2741.2,3.64802]
[1740236263951,6.1089,2741.6,2741.3,3.64789]
[1740236264133,6.1089,2741.6,2741.3,3.774066]
[1740236264948,5.32,2741.6,2741.5,3.64763]
[1740236265469,5.32,2741.6,2741.5,0.12611062]
[1740236265969,5.32,2741.6,2741.4,3.64774]
[1740236266174,5.32,2741.6,2741.5,0.12611062]
[1740236266469,5.32,2741.6,2741.1,0.631]
[1740236266659,5.32,2741.6,2741.5,0.12611062]
[1740236266869,5.32,2741.6,2741.2,7.29587]
[1740236267055,5.32,2741.6,2741.5,0.12611062]
[1740236267243,5.32,2741.6,2741.2,3.64792]
[1740236267438,5.32,2741.6,2741.3,0.12622205]
[1740236267639,5.32,2741.8,2741.3,0.12622205]
[1740236267949,0.8292,2741.7,2741.3,0.12622205]
[1740236268137,7.2952,2741.6,2741.3,0.12622205]
[1740236268342,0.8292,2741.5,2740.8,5.31171456]
[1740236268575,0.7926,2741.3,2740.8,5.31171456]
[1740236268873,0.7926,2741.3,2740.7,7.39134869]
[1740236269078,3.64805,2741.2,2740.8,1.33343133]
[1740236269439,4.4405,2741.3,2740.4,1.66318456]
[1740236269639,0.7926,2741.0,2740.6,3.64871]
[1740236270069,0.7926,2741.0,2740.7,3.64868]
[1740236270652,8.96769,2741.5,2740.9,3.64843]
[1740236270851,1.689369,2741.4,2740.9,3.64843]
[1740236271072,0.7926,2741.4,2741.0,3.64821]
[1740236271487,0.7926,2741.4,2740.8,1.66318456]
[1740236271642,3.64777,2741.4,2740.7,3.6486]
[1740236271842,0.7926,2741.3,2740.7,3.6486]
[1740236272043,4.44054,2741.3,2740.6,1.66318456]
[1740236272353,3.64806,2741.2,2740.6,1.66318456]
[1740236272781,3.64804,2741.2,2740.7,3.6487]
[1740236272960,0.7926,2741.1,2740.6,1.66318456]
[1740236273163,4.44079,2741.1,2740.6,1.66318456]
[1740236273480,4.44079,2741.1,2740.4,4.66318456]
[1740236273659,9.76079,2741.1,2740.4,5.58381602]
[1740236274059,9.76079,2741.1,2740.5,3.64888]
[1740236274243,3.64835,2741.0,2740.5,3.64888]
[1740236274443,0.7926,2740.9,2740.5,3.64888]
[1740236274640,0.7926,2740.9,2740.4,5.31227456]
[1740236274641,9.76108,2740.9,2740.4,5.31227456]
[1740236274877,9.76108,2740.9,2740.4,1.66318456]
[1740236276172,6.1126,2740.9,2740.5,3.64896]
[1740236276343,6.1126,2740.9,2740.7,3.64869]
[1740236277153,6.1126,2740.9,2740.5,3.64888]
[1740236277660,6.1126,2740.9,2740.6,3.64877]
[1740236277982,5.32,2740.9,2740.7,3.64866]
[1740236278178,5.32,2740.9,2740.7,3.64858]
[1740236278485,5.32,2740.9,2740.8,3.64856]
[1740236278983,5.32,2740.9,2740.6,3.64883]
[1740236279162,5.32,2740.9,2740.7,3.6487]
[1740236279486,5.32,2741.0,2740.7,3.6487]
[1740236279781,5.32,2741.0,2740.6,7.29757]
[1740236279978,5.32,2741.0,2740.6,3.64874]
[1740236280483,5.32,2741.0,2740.7,3.64862]
[1740236280685,5.32,2741.0,2740.6,3.64874]
[1740236281284,5.32,2741.0,2740.7,0.1269618]
[1740236282785,8.9683,2741.0,2740.7,0.1269618]
[1740236282987,0.7926,2740.9,2740.4,5.31219456]
[1740236283367,0.7926,2740.9,2740.5,0.12707329]
[1740236283565,6.10791456,2740.6,2740.5,0.12707329]
[1740236283774,11.40729659,2740.6,2740.5,0.12707329]
[1740236283955,0.7959,2740.2,2739.5,3.65017]
[1740236284160,5.32,2740.1,2739.2,4.28164]
[1740236284364,5.32,2740.1,2739.7,3.64993]
[1740236284687,5.32,2740.3,2740.1,3.64949]
[1740236284856,5.32,2740.4,2740.0,3.64963]
[1740236285057,5.32,2740.4,2740.1,0.11654484]
[1740236285257,0.7959,2740.2,2739.7,4.28101]
[1740236285492,0.7959,2740.2,2739.8,0.11671215]
[1740236285690,0.7959,2740.2,2739.7,4.28101]
[1740236285886,4.44528,2740.2,2739.9,0.11665638]
[1740236286089,0.7959,2740.2,2739.7,3.64994]
[1740236286288,0.7959,2740.2,2740.0,0.1166006]
[1740236286590,5.32,2740.4,2740.1,3.6495]
[1740236286795,5.32,2740.4,2740.1,3.76604484]
[1740236286966,5.32,2740.4,2740.1,4.77364932]
[1740236287170,5.32,2740.4,2740.3,3.64923]
[1740236287564,5.32,2740.4,2740.3,3.76566331]
[1740236287895,5.32,2740.4,2740.3,0.11643331]
[1740236288388,0.7959,2740.4,2739.9,4.28071]
[1740236288694,0.7959,2740.4,2739.9,4.708781]
[1740236288881,0.7959,2740.4,2740.0,3.7662206]
[1740236289594,0.7959,2740.4,2740.1,3.64946]
[1740236289966,0.7959,2740.4,2739.9,4.708781]
[1740236289967,6.1215,2740.7,2740.4,3.64907]
[1740236290196,6.1215,2740.7,2740.3,3.64913]
[1740236290498,6.1215,2740.7,2740.5,3.64893]
[1740236290799,5.32,2740.7,2740.6,3.64883]
[1740236290955,5.32,2740.7,2740.6,3.76509605]
[1740236294315,5.32,2741.0,2740.6,3.76509605]
[1740236294510,5.32,2741.0,2740.8,3.64846]
[1740236294916,5.32,2741.0,2740.9,0.11632923]
[1740236296618,5.32,2741.0,2740.6,7.29756]
[1740236296919,5.32,2741.0,2740.7,3.64869]
[1740236297123,5.32,2741.0,2740.7,3.7651307]
[1740236297417,5.32,2741.0,2740.8,3.64847]
[1740236297779,5.32,2741.0,2740.9,0.11632923]
[1740236298116,5.32,2741.0,2740.9,3.76475923]
[1740236302027,5.32,2741.0,2740.9,0.11632923]
[1740236302325,5.32,2741.0,2740.7,7.29722]
[1740236302525,5.32,2741.0,2740.9,0.11632923]
[1740236302755,5.32,2741.0,2740.8,3.76492496]
[1740236302929,5.32,2741.0,2740.9,0.11632923]
[1740236303921,5.32,2741.0,2740.9,3.76475923]
[1740236304495,6.098,2741.5,2740.9,0.92076115]
[1740236304692,6.098,2741.5,2741.2,3.64794]
[1740236304887,6.098,2741.5,2741.3,0.11665911]
[1740236305089,6.098,2741.5,2741.1,3.64804]
[1740236305288,6.098,2741.5,2741.2,3.76466483]
[1740236308725,6.098,2741.5,2741.2,0.11671483]
[1740236308924,6.098,2741.5,2741.3,3.64779]
[1740236309129,6.098,2741.5,2741.3,3.76434775]
[1740236309599,5.32,2741.5,2741.3,3.76434775]
[1740236309802,5.32,2741.5,2741.3,7.41216775]
[1740236310617,5.32,2741.5,2741.3,0.11655775]
[1740236311141,5.32,2741.5,2741.3,3.76444775]
[1740236311948,5.32,2741.5,2741.3,0.11655775]
[1740236313134,8.96775,2741.5,2741.0,0.631]
[1740236313337,0.8093,2741.4,2740.9,3.64835]
[1740236314042,3.64824,2741.1,2740.5,4.27989]
[1740236314223,0.8093,2741.0,2740.5,4.27989]
[1740236314642,0.8093,2741.0,2740.7,3.64861]
[1740236314938,0.8093,2741.0,2740.7,7.29723]
[1740236315307,0.8093,2741.0,2740.7,3.64861]
[1740236315502,5.32,2741.1,2740.7,3.64861]
[1740236315740,5.32,2741.1,2741.0,3.6483]
[1740236318103,0.8093,2741.5,2741.1,3.64809]
[1740236318329,0.8093,2741.5,2741.3,3.64787]
[1740236318536,0.8093,2741.5,2741.1,3.64809]
[1740236318737,0.8093,2741.5,2741.1,3.64806]
[1740236318937,0.8093,2741.5,2741.2,3.648]
[1740236319839,0.8093,2741.5,2741.1,7.29613]
[1740236320839,0.8093,2741.5,2741.2,3.64797]
[1740236321142,0.8261,2741.5,2741.3,3.64789]
[1740236321643,0.8261,2741.5,2741.1,3.64806]
[1740236324449,1.805447,2741.5,2740.6,0.631]
[1740236324650,0.8241,2741.0,2740.4,3.64899]
[1740236324829,6.1441,2741.0,2740.8,3.64856]
[1740236325452,5.32,2741.0,2740.9,3.64843]
[1740236325612,5.32,2741.0,2740.8,3.64856]
[1740236325811,5.32,2741.0,2740.6,3.64878]
[1740236326051,0.8241,2740.9,2740.6,3.64878]
[1740236326237,0.8241,2740.9,2740.7,0.11654194]
[1740236330266,5.32,2741.0,2740.7,0.11654194]
[1740236330467,5.32,2741.0,2740.7,0.74754194]
[1740236331030,5.32,2741.0,2740.8,3.64849]
[1740236331235,5.32,2741.0,2740.9,3.64843]
[1740236331435,5.32,2741.0,2740.9,3.76509083]
[1740236333864,5.32,2741.0,2740.9,4.56954891]
[1740236334041,5.32,2741.0,2740.9,4.45288808]
[1740236334240,5.32,2741.0,2740.9,4.56941069]
[1740236336069,0.7677,2741.4,2741.2,3.64801]
[1740236336435,0.7677,2741.4,2741.3,0.11629971]
[1740236338975,0.0168,2741.5,2741.3,0.11629971]
[1740236340289,0.3947371,2741.5,2741.3,0.11629971]
[1740236340465,0.3947371,2741.5,2741.0,3.64823]
[1740236340677,0.3947371,2741.5,2741.4,0.11624399]
[1740236340875,0.3947371,2741.5,2741.1,3.64816]
[1740236341079,0.3947371,2741.5,2741.4,0.11624399]
[1740236341272,0.3947371,2741.5,2741.1,3.64815]
[1740236341575,0.0168,2741.5,2741.2,0.11635543]
[1740236342473,3.66444,2741.5,2741.2,0.11635543]
[1740236342679,3.66444,2741.5,2740.9,3.64835]
[1740236342980,0.7506,2741.4,2741.0,3.64829]
[1740236343176,0.7506,2741.4,2741.0,3.76448049]
[1740236343550,0.8055,2741.3,2741.0,0.11619049]
[1740236343751,8.10146,2741.3,2740.7,3.64868]
[1740236343961,4.45348,2741.3,2741.1,0.1160242]
[1740236344164,3.64818,2741.1,2740.5,0.894]
[1740236344364,8.96813,2741.2,2740.5,4.54285]
[1740236344563,8.96813,2741.2,2740.7,3.64862]
[1740236344564,5.32,2741.2,2740.7,3.64862]
[1740236344995,5.32,2741.2,2740.7,7.29724]
[1740236345152,5.32,2741.2,2740.7,3.64862]
[1740236346275,5.32,2741.2,2740.8,3.64856]
[1740236346477,5.32,2741.2,2740.9,3.64835]
[1740236347982,5.32,2741.2,2740.7,3.64864]
[1740236348155,5.32,2741.2,2740.7,3.64862]
[1740236348352,0.8055,2741.1,2740.7,3.64862]
[1740236348553,0.8055,2741.1,2740.7,7.29724]
[1740236348747,0.8055,2741.1,2740.8,3.64852]
[1740236349484,0.8055,2741.1,2741.0,0.72133758]
[1740236350686,5.32,2741.2,2741.0,5.00063758]
[1740236350863,5.32,2741.2,2741.1,3.64817]
[1740236351188,5.3368,2741.5,2741.2,3.64802]
[1740236353053,5.3368,2741.5,2741.2,7.29597]
[1740236353254,5.3368,2741.5,2741.2,3.64795]
[1740236356285,5.3368,2741.5,2741.3,0.11604174]
[1740236369429,5.3368,2741.5,2741.3,3.76386174]
[1740236369827,5.3368,2741.5,2741.4,0.716217]
[1740236370008,5.3368,2741.5,2741.4,0.83231356]
[1740236371297,5.3368,2741.5,2741.4,4.48008356]
[1740236371622,5.3368,2741.5,2741.4,0.83231356]
[1740236372494,5.3368,2741.5,2741.4,4.48008356]
[1740236374517,0.0168,2741.5,2741.4,4.48008356]
[1740236374813,0.0168,2741.5,2741.4,4.363987]
[1740236375013,0.0168,2741.5,2741.4,4.48006513]
[1740236377313,0.0168,2741.5,2741.4,3.76384813]
[1740236378228,0.0168,2741.5,2741.4,0.11607813]
[1740236382960,0.0168,2741.5,2741.4,3.76384813]
[1740236386184,0.0168,2741.5,2741.4,0.11607813]
[1740236386384,0.0168,2741.5,2741.3,3.64787]
[1740236386717,0.0168,2741.5,2741.4,0.11603206]
[1740236397819,0.0168,2741.5,2741.1,3.91108]
[1740236398019,0.0168,2741.5,2741.4,0.11591229]
[1740236398216,0.0168,2741.5,2741.1,7.55915]
[1740236398457,0.0168,2741.5,2741.4,0.11591229]
[1740236398654,0.0168,2741.5,2741.2,3.64796]
[1740236398842,0.0168,2741.5,2741.4,0.11591229]
[1740236399015,0.0168,2741.5,2741.2,3.64796]
[1740236399340,0.0168,2741.5,2741.4,0.11591229]
[1740236399540,0.0168,2741.5,2741.3,0.11596801]
[1740236399713,0.0168,2741.5,2741.4,0.11591229]
[1740236400050,0.0168,2741.5,2741.2,3.64796]
[1740236400344,0.0168,2741.5,2741.3,3.64779]
[1740236400526,0.0168,2741.5,2741.4,3.64777]
[1740236401307,0.0336,2741.5,2741.4,3.64777]
[1740236401520,0.0336,2741.5,2741.1,3.64804]
[1740236401726,0.7899,2741.4,2741.1,4.467062]
[1740236401938,0.7899,2741.4,2741.2,3.64803]
[1740236403428,0.0336,2741.5,2741.3,3.6479]
[1740236404145,0.0336,2741.5,2741.4,4.27877]
[1740236405923,0.0336,2741.5,2741.4,5.94228378]
[1740236406115,0.0336,2741.5,2741.4,6.90130216]
[1740236410526,0.0336,2741.5,2741.4,7.45130216]
[1740236411264,0.7753,2742.5,2741.6,0.631]
[1740236411426,0.7753,2742.5,2742.4,3.64644]
[1740236411859,5.32,2742.6,2742.5,3.6463]
[1740236412023,0.7753,2742.8,2742.5,3.6463]
[1740236412752,6.0953,2743.0,2742.6,3.64617]
[1740236413529,6.0953,2743.0,2742.7,3.64604]
[1740236414933,5.32,2743.0,2742.9,3.64577]
[1740236416066,0.7753,2743.2,2743.0,3.64561]
[1740236416229,0.7753,2743.2,2742.9,3.64577]
[1740236417458,0.7753,2743.2,2743.0,3.64562]
[1740236417847,0.7753,2743.2,2743.1,0.11410908]
[1740236418145,0.7753,2743.2,2743.0,3.64562]
[1740236419169,0.7753,2743.2,2743.1,3.7586616]
[1740236420065,0.7753,2743.4,2743.1,3.7586616]
[1740236421936,0.7753,2743.4,2743.2,3.64535]
[1740236422134,0.7753,2743.4,2743.3,0.11199082]
[1740236422664,0.7753,2743.4,2743.1,3.64551]
[1740236422971,0.7753,2743.4,2743.2,0.11204645]
[1740236425974,3.64524,2743.3,2743.2,0.11204645]
[1740236426173,3.64558,2743.1,2742.7,0.263]
[1740236426478,0.7845,2743.0,2742.8,0.50318405]
[1740236428179,0.7845,2743.0,2742.8,4.14905405]
[1740236429295,0.8217,2743.4,2742.9,3.64568]
[1740236429493,0.8217,2743.4,2743.0,3.64562]
[1740236429796,0.8217,2743.4,2743.0,3.75777774]
[1740236430087,0.8217,2743.4,2743.1,3.6455]
[1740236430293,0.8217,2743.4,2743.0,3.75777774]
[1740236430487,5.32,2743.5,2743.2,0.11204645]
[1740236430645,5.32,2743.5,2743.1,3.7575321]
[1740236430957,5.32,2743.6,2743.2,0.11186238]
[1740236431153,3.64498,2743.5,2743.2,0.11186238]
[1740236431365,0.8217,2743.5,2743.1,3.64549]
[1740236431568,0.8217,2743.5,2743.2,3.64531]
[1740236431782,0.8217,2743.5,2743.2,0.11186238]
[1740236434778,0.8217,2743.5,2743.2,3.75721238]
[1740236436097,0.8217,2743.5,2743.2,0.11186238]
[1740236436266,5.32,2743.6,2743.2,0.74286238]
[1740236436898,5.32,2743.6,2743.2,4.38815238]
[1740236438690,5.32,2743.6,2743.2,0.74286238]
[1740236438989,5.32,2743.6,2743.3,3.64523]
[1740236439189,5.32,2743.6,2743.3,3.75703674]
[1740236440989,5.32,2743.6,2743.3,0.11180674]
[1740236441608,5.32,2743.6,2743.3,3.75704674]
[1740236442310,5.32,2743.6,2743.3,0.11180674]
[1740236449919,0.7963,2743.7,2743.3,0.48751641]
[1740236450222,8.96451,2743.9,2743.4,3.64498]
[1740236450223,6.1336,2743.9,2743.4,3.64498]
[1740236450594,6.1336,2743.9,2743.5,0.11151148]
[1740236451216,6.1336,2743.9,2743.5,3.75646148]
[1740236451581,6.1336,2743.9,2743.5,0.11151148]
[1740236452482,6.1336,2743.9,2743.5,3.75643148]
[1740236452681,6.1336,2743.9,2743.5,0.11151148]
[1740236453318,6.1336,2743.9,2743.5,0.58783159]
[1740236454516,9.77817,2743.9,2743.5,0.58783159]
[1740236454707,9.77817,2743.9,2743.5,0.11151148]
[1740236454910,3.6446,2743.8,2743.3,1.00670967]
[1740236455111,3.6446,2743.8,2743.4,0.11156711]
[1740236455621,9.77807,2743.9,2743.4,3.75666711]
[1740236455822,9.77807,2743.9,2743.5,0.47633768]
[1740236456025,3.64465,2743.8,2743.5,0.47633768]
[1740236456208,6.1336,2743.9,2743.6,0.11114306]
[1740236456603,9.77807,2743.9,2743.6,0.11114306]
[1740236456806,6.1336,2743.9,2743.6,0.11114306]
[1740236457006,6.1336,2743.9,2743.6,0.53440013]
[1740236458229,6.0336,2743.9,2743.6,0.53440013]
[1740236458935,6.0336,2743.9,2743.6,4.17919013]
[1740236459490,5.22,2743.9,2743.6,4.17914013]
[1740236460815,5.22,2743.9,2743.7,3.64471]
[1740236461023,5.22,2743.9,2743.8,4.06249101]
[1740236461217,5.22,2743.9,2743.8,4.17304442]
[1740236461735,5.22,2743.9,2743.8,0.52846442]
[1740236462099,5.22,2743.9,2743.8,0.11055341]
[1740236462297,5.22,2743.9,2743.6,0.263]
[1740236462499,5.22,2743.9,2743.7,0.11045266]
[1740236462930,0.7504,2743.8,2743.7,0.11045266]
[1740236464745,5.22,2743.9,2743.5,3.64488]
[1740236464894,5.22,2743.9,2743.7,0.11045266]
[1740236465499,5.22,2743.9,2743.7,3.75516266]
[1740236467673,5.22,2743.9,2743.8,3.64458]
[1740236467963,5.22,2743.9,2743.8,3.75457236]
[1740236469234,5.22,2743.9,2743.8,4.38557236]
[1740236469539,0.7743,2744.2,2743.8,5.45549047]
[1740236470256,0.7743,2744.2,2743.9,3.64436]
[1740236470418,0.7743,2744.4,2743.9,3.64436]
[1740236470624,0.7743,2744.4,2744.0,0.10958686]
[1740236471019,0.7743,2744.4,2744.0,3.75389686]
[1740236471246,4.4181,2744.4,2744.1,0.37538969]
[1740236471447,4.4181,2744.4,2744.0,0.10958686]
[1740236471662,4.4181,2744.4,2744.2,0.10947565]
[1740236471867,4.4181,2744.4,2744.1,0.10953125]
[1740236472036,4.4181,2744.4,2744.3,0.10942005]
[1740236472238,4.4181,2744.4,2744.2,0.10947565]
[1740236472473,4.4181,2744.4,2744.3,0.10942005]
[1740236472773,4.4181,2744.4,2743.8,5.34549811]
[1740236472954,4.4181,2744.4,2744.3,0.10942005]
[1740236473275,4.4181,2744.4,2743.9,0.53454981]
[1740236473276,0.7743,2744.4,2743.9,3.64442]
[1740236473566,5.22,2744.5,2744.0,0.10958686]
[1740236473767,5.22,2744.9,2744.2,0.631]
[1740236473935,0.7743,2744.8,2744.3,3.64386]
[1740236474142,4.41755,2744.8,2744.4,0.10924492]
[1740236474724,3.64339,2744.7,2744.2,4.51518956]
[1740236474930,4.41755,2744.8,2744.3,0.10930052]
[1740236475124,4.41755,2744.8,2744.2,4.51518956]
[1740236475125,3.64339,2744.7,2744.2,4.51518956]
[1740236475326,3.64339,2744.7,2744.3,0.72691035]
[1740236476428,4.41755,2744.8,2744.3,0.72691035]
[1740236476857,0.7743,2744.8,2744.3,0.72691035]
[1740236477170,0.7743,2744.4,2744.3,0.10930052]
[1740236477678,9.63782,2744.6,2744.1,0.631]
[1740236478031,9.63782,2744.6,2744.2,0.10935612]
[1740236478659,5.22,2744.6,2744.2,3.75327612]
[1740236479883,5.22,2744.6,2744.4,3.64369]
[1740236480085,5.22,2744.6,2744.5,0.364369]
[1740236480286,5.22,2744.6,2744.5,0.47304346]
[1740236480471,5.22,2744.6,2744.5,0.10867446]
[1740236480671,9.63781,2744.6,2744.5,0.10867446]
[1740236480875,9.63781,2744.6,2744.0,3.64431]
[1740236481170,9.63781,2744.6,2744.1,0.10889684]
[1740236482071,13.28141,2744.6,2744.1,0.10889684]
[1740236482385,9.63781,2744.6,2744.1,0.87360752]
[1740236484862,13.28142,2744.6,2744.1,0.87360752]
[1740236485764,3.64366,2744.5,2744.1,0.87360752]
[1740236485957,3.64379,2744.4,2744.1,0.87360752]
[1740236486183,4.40884,2744.2,2744.1,0.10889684]
[1740236486692,4.40884,2744.2,2743.7,0.894]
[1740236487012,4.40884,2744.2,2743.7,7.5387]
[1740236487298,4.40884,2744.2,2743.8,0.10896255]
[1740236487507,0.7648,2744.2,2743.8,0.10896255]
[1740236487707,4.40871,2744.4,2743.8,4.11082226]
[1740236487891,4.40871,2744.4,2743.9,0.10890694]
[1740236488218,0.7648,2744.4,2744.0,3.64429]
[1740236488384,5.22,2744.6,2744.1,4.27507]
[1740236488582,3.64368,2744.5,2744.1,1.17836988]
[1740236488783,0.7911,2744.2,2744.1,0.1089612]
[1740236489004,0.7911,2744.2,2743.8,4.27548]
[1740236489199,0.7911,2744.2,2744.1,0.1089612]
[1740236489502,0.7911,2744.2,2743.8,4.27548]
[1740236489672,0.7911,2744.4,2744.1,0.1089612]
[1740236489874,0.7911,2744.4,2743.9,4.098188]
[1740236490199,0.7911,2744.4,2744.0,3.64429]
[1740236490372,0.7911,2744.4,2744.0,3.7533068]
[1740236491003,4.43488,2744.4,2744.0,0.1090168]
[1740236491306,4.43488,2744.4,2744.0,0.95730128]
[1740236491788,0.7911,2744.4,2744.0,0.95730128]
[1740236492476,4.4349,2744.4,2744.0,0.95730128]
[1740236492677,0.7911,2744.4,2744.0,0.95730128]
[1740236495408,4.4349,2744.4,2744.0,0.95730128]
[1740236495723,0.7911,2744.4,2744.0,0.95730128]
[1740236500113,6.0111,2744.6,2744.0,0.1090168]
[1740236500425,6.0111,2744.6,2744.2,3.64393]
[1740236500923,6.0111,2744.6,2744.3,0.1088316]
[1740236501293,6.0111,2744.6,2744.1,3.64409]
[1740236501503,3.64365,2744.5,2744.4,0.10877601]
[1740236501894,3.64365,2744.5,2743.9,3.64437]
[1740236502132,3.64365,2744.5,2744.4,0.10877601]
[1740236503146,4.43475,2744.5,2744.4,0.10877601]
[1740236503310,0.7911,2744.2,2743.6,0.016]
[1740236503510,6.0111,2744.2,2743.8,3.6445]
[1740236504039,6.0111,2744.2,2743.9,0.10891612]
[1740236504636,6.0111,2744.2,2743.6,3.66079]
[1740236504819,3.6442,2744.1,2744.0,0.10896164]
[1740236505025,6.0111,2744.2,2743.7,3.6447]
[1740236505220,6.0111,2744.2,2744.0,0.10896164]
[1740236505427,6.0111,2744.2,2743.7,3.6447]
[1740236505628,6.0111,2744.2,2744.1,0.10890603]
[1740236506029,6.0111,2744.2,2743.7,3.6447]
[1740236506231,6.0111,2744.2,2744.1,0.10890603]
[1740236506431,6.0111,2744.2,2743.7,3.6447]
[1740236506603,6.0111,2744.2,2744.1,0.10890603]
[1740236506805,6.0111,2744.2,2743.8,3.64447]
[1740236507004,6.0111,2744.2,2744.1,0.10890603]
[1740236507511,6.0111,2744.2,2743.8,3.64447]
[1740236507841,9.65514,2744.2,2743.6,3.66076]
[1740236508008,6.0111,2744.2,2743.9,0.10919192]
[1740236508208,9.65517,2744.2,2743.6,0.83598]
[1740236508417,9.65517,2744.2,2744.0,0.10913631]
[1740236508746,4.4523,2743.8,2743.6,0.016]
[1740236508944,3.64471,2743.7,2743.6,0.016]
[1740236509245,5.261957,2743.8,2743.6,0.016]
[1740236509246,0.8077,2743.8,2743.6,0.016]
[1740236512307,0.8077,2743.8,2743.7,3.64471]
[1740236512506,0.8077,2744.1,2743.7,3.64471]
[1740236514115,6.0277,2744.1,2743.7,3.64471]
[1740236514655,6.0277,2744.1,2743.6,0.016]
[1740236514828,6.0277,2744.1,2743.6,3.66083]
[1740236516647,6.0277,2744.1,2743.7,0.10973533]
[1740236517034,6.0277,2744.1,2743.7,3.75436533]
[1740236518650,6.0277,2744.1,2743.7,0.10973533]
[1740236518851,7.359273,2744.1,2743.7,0.10973533]
[1740236519149,11.003453,2744.1,2743.7,0.10973533]
[1740236520023,3.64431,2744.0,2743.7,0.10973533]
[1740236522457,6.0277,2744.1,2743.7,0.10973533]
[1740236522458,3.64458,2743.8,2743.7,0.10973533]
[1740236522658,5.181183,2743.8,2743.7,0.10973533]
[1740236522970,4.45241,2743.7,2743.6,0.016]
[1740236523261,4.45241,2743.7,2743.6,0.12591965]
[1740236523655,9.67241,2743.7,2743.6,0.12591965]
[1740236523866,9.67241,2743.7,2743.6,0.016]
[1740236524019,11.0769993,2743.7,2743.6,0.016]
[1740236524957,7.4322893,2743.7,2743.6,0.016]
[1740236525124,9.67241,2743.7,2743.6,0.016]
[1740236525741,9.67241,2743.7,2743.6,0.12639792]
[1740236526129,9.67241,2743.7,2743.6,0.016]
[1740236529428,6.0277,2743.7,2743.6,0.016]
[1740236529625,0.8251,2743.9,2743.6,0.016]
[1740236529851,0.8251,2743.9,2743.7,3.64469]
[1740236530050,0.8251,2743.9,2743.7,0.11099537]
[1740236532853,4.46955,2743.9,2743.7,0.11099537]
[1740236534773,0.8251,2743.9,2743.7,0.11099537]
[1740236539674,0.8251,2743.9,2743.6,0.016]
[1740236540184,0.8251,2743.9,2743.7,0.11052626]
[1740236543573,5.22,2744.1,2743.7,0.11052626]
[1740236543888,6.0469,2744.1,2743.7,0.11052626]
[1740236544857,6.0469,2744.1,2743.8,3.64457]